fUSD/lending_fUSD_20250111
["ID","MTS","AMOUNT","RATE_DAILY","PERIOD"]
[348541052,1736610667540,-500.0,0.00011369,2]
[348541053,1736610667550,-500.0,0.00011369,2]
[348541054,1736610667559,-500.0,0.00011369,2]
[348541055,1736610667568,-500.0,0.00011369,2]
[348541056,1736610667580,-500.0,0.00011369,2]
[348541057,1736610667590,-500.0,0.00011369,2]
[348541058,1736610667600,-500.0,0.00011369,2]
[348541059,1736610667609,-500.0,0.00011369,2]
[348541060,1736610667618,-500.0,0.00011369,2]
[348541061,1736610667628,-500.0,0.00011369,2]
[348541062,1736610667638,-500.0,0.00011369,2]
[348541063,1736610667647,-500.0,0.00011369,2]
[348541064,1736610667657,-500.0,0.00011369,2]
[348541065,1736610667667,-500.0,0.00011369,2]
[348541066,1736610667676,-270.54,0.00011369,2]
[348541067,1736610667686,-500.0,0.00011369,2]
[348541068,1736610667696,-500.0,0.00011369,2]
[348541069,1736610667705,-500.0,0.00011369,2]
[348541070,1736610667715,-500.0,0.00011369,2]
[348541071,1736610667724,-542.45,0.00011369,2]
[348541072,1736610667734,-500.0,0.00011369,2]
[348541073,1736610667744,-500.0,0.00011369,2]
[348541074,1736610667754,-500.0,0.00011369,2]
[348541075,1736610667763,-500.0,0.00011369,2]
[348541076,1736610667774,-500.0,0.00011369,2]
[348541077,1736610667784,-500.0,0.00011369,2]
[348541078,1736610667794,-500.0,0.00011369,2]
[348541079,1736610667803,-500.0,0.00011369,2]
[348541080,1736610667813,-500.0,0.00011369,2]
[348541081,1736610667822,-500.0,0.00011369,2]
[348541082,1736610667831,-500.0,0.00011369,2]
[348541083,1736610667841,-500.0,0.00011369,2]
[348541084,1736610667850,-436.87826717,0.00011369,2]
[348541085,1736610667860,-541.16,0.00011369,2]
[348541086,1736610667869,-500.0,0.00011369,2]
[348541087,1736610667879,-500.0,0.00011369,2]
[348541088,1736610667888,-500.0,0.00011369,2]
[348541089,1736610667898,-500.0,0.00011369,2]
[348541090,1736610667908,-500.0,0.00011369,2]
[348541091,1736610667917,-543.14,0.00011369,2]
[348541092,1736610667927,-500.0,0.00011369,2]
[348541093,1736610667937,-500.0,0.00011369,2]
[348541094,1736610667946,-500.0,0.00011369,2]
[348541095,1736610667957,-500.0,0.00011369,2]
[348541096,1736610667966,-500.0,0.00011369,2]
[348541097,1736610667976,-500.0,0.00011369,2]
[348541098,1736610667985,-500.0,0.00011369,2]
[348541099,1736610667995,-565.62,0.00011369,2]
[348541100,1736610668004,-500.0,0.00011369,2]
[348541101,1736610668014,-500.0,0.00011369,2]
[348541102,1736610668025,-500.0,0.00011369,2]
[348541103,1736610668035,-758.14,0.00011369,2]
[348541104,1736610668044,-500.0,0.00011369,2]
[348541105,1736610668054,-500.0,0.00011369,2]
[348541106,1736610668063,-500.0,0.00011369,2]
[348541107,1736610668073,-500.0,0.00011369,2]
[348541108,1736610668083,-502.76734816,0.00011369,2]
[348541109,1736610668092,-500.0,0.00011369,2]
[348541110,1736610668101,-500.0,0.00011369,2]
[348541111,1736610668111,-500.0,0.00011369,2]
[348541112,1736610668121,-500.0,0.00011369,2]
[348541113,1736610668130,-500.0,0.00011369,2]
[348541114,1736610668139,-531.58912321,0.00011369,2]
[348541115,1736610668149,-456.77156815,0.00011369,2]
[348541116,1736610668159,-500.0,0.00011369,2]
[348541117,1736610668168,-500.0,0.00011369,2]
[348541118,1736610668178,-500.0,0.00011369,2]
[348541119,1736610668187,-500.0,0.00011369,2]
[348541120,1736610668196,-500.0,0.00011369,2]
[348541121,1736610668206,-691.22,0.00011369,2]
[348541122,1736610668215,-500.0,0.00011369,2]
[348541123,1736610668224,-500.0,0.00011369,2]
[348541124,1736610668234,-500.0,0.00011369,2]
[348541125,1736610668243,-500.0,0.00011369,2]
[348541126,1736610668252,-500.0,0.00011369,2]
[348541127,1736610668262,-493.26085069,0.00011369,2]
[348541128,1736610668273,-500.0,0.00011369,2]
[348541129,1736610668282,-500.0,0.00011369,2]
[348541130,1736610668291,-500.0,0.00011369,2]
[348541131,1736610668301,-500.0,0.00011369,2]
[348541132,1736610668310,-550.47,0.00011369,2]
[348541133,1736610668319,-500.0,0.00011369,2]
[348541134,1736610668328,-500.0,0.00011369,2]
[348541135,1736610668338,-500.0,0.00011369,2]
[348541136,1736610668347,-500.0,0.00011369,2]
[348541137,1736610668358,-500.0,0.00011369,2]
[348541138,1736610668367,-465.64,0.00011369,2]
[348541139,1736610668377,-500.0,0.00011369,2]
[348541140,1736610668387,-500.0,0.00011369,2]
[348541141,1736610668396,-536.52,0.00011369,2]
[348541142,1736610668406,-500.0,0.00011369,2]
[348541143,1736610668416,-529.43,0.00011369,2]
[348541144,1736610668426,-500.0,0.00011369,2]
[348541145,1736610668436,-500.0,0.00011369,2]
[348541146,1736610668446,-500.0,0.00011369,2]
[348541147,1736610668455,-595.81,0.00011369,2]
[348541148,1736610668465,-500.0,0.00011369,2]
[348541149,1736610668475,-500.0,0.00011369,2]
[348541150,1736610668487,-500.0,0.00011369,2]
[348541151,1736610668497,-500.0,0.00011369,2]
[348541152,1736610668507,-525.81,0.00011369,2]
[348541153,1736610668516,-500.0,0.00011369,2]
[348541154,1736610668527,-500.0,0.00011369,2]
[348541155,1736610668537,-500.0,0.00011369,2]
[348541156,1736610668546,-500.0,0.00011369,2]
[348541157,1736610668555,-500.0,0.00011369,2]
[348541158,1736610668565,-500.0,0.00011369,2]
[348541159,1736610668574,-500.0,0.00011369,2]
[348541160,1736610668588,-500.0,0.00011369,2]
[348541161,1736610668597,-500.0,0.00011369,2]
[348541162,1736610668607,-500.0,0.00011369,2]
[348541163,1736610668617,-500.0,0.00011369,2]
[348541164,1736610668626,-500.0,0.00011369,2]
[348541165,1736610668635,-500.0,0.00011369,2]
[348541166,1736610668645,-500.0,0.00011369,2]
[348541167,1736610668657,-500.0,0.00011369,2]
[348541168,1736610668666,-500.0,0.00011369,2]
[348541169,1736610668676,-239.57,0.00011369,2]
[348541170,1736610668686,-500.0,0.00011369,2]
[348541171,1736610668695,-500.0,0.00011369,2]
[348541172,1736610668704,-500.0,0.00011369,2]
[348541173,1736610668714,-500.0,0.00011369,2]
[348541174,1736610668723,-500.0,0.00011369,2]
[348541175,1736610668733,-355.14,0.00011369,2]
[348541176,1736610668743,-500.0,0.00011369,2]
[348541177,1736610668753,-500.0,0.00011369,2]
[348541178,1736610668763,-500.0,0.00011369,2]
[348541179,1736610668772,-500.0,0.00011369,2]
[348541180,1736610668782,-500.0,0.00011369,2]
[348541181,1736610668791,-205.96,0.00011369,2]
[348541182,1736610668801,-500.0,0.00011369,2]
[348541183,1736610668810,-500.0,0.00011369,2]
[348541184,1736610668819,-500.0,0.00011369,2]
[348541185,1736610668829,-500.0,0.00011369,2]
[348541186,1736610668839,-504.42,0.00011369,2]
[348541187,1736610668848,-500.0,0.00011369,2]
[348541188,1736610668858,-500.0,0.00011369,2]
[348541189,1736610668868,-500.0,0.00011369,2]
[348541190,1736610668877,-399.83,0.00011369,2]
[348541191,1736610668887,-500.0,0.00011369,2]
[348541192,1736610668896,-500.0,0.00011369,2]
[348541193,1736610668905,-500.0,0.00011369,2]
[348541194,1736610668914,-500.0,0.00011369,2]
[348541195,1736610668923,-500.0,0.00011369,2]
[348541196,1736610668932,-500.0,0.00011369,2]
[348541197,1736610668941,-500.0,0.00011369,2]
[348541198,1736610668951,-500.0,0.00011369,2]
[348541199,1736610668960,-150.0,0.00011394,2]
[348541200,1736610668969,-206.4216457,0.000114,2]
[348541201,1736610668978,-683.73,0.0001143,2]
[348541202,1736610668987,-1307.0,0.00011433,2]
[348541203,1736610668996,-447.12,0.00011468,2]
[348541204,1736610669005,-150.0,0.00011479,2]
[348541205,1736610669014,-150.0,0.00011479,2]
[348541206,1736610669024,-150.0,0.00011479,2]
[348541207,1736610669033,-150.0,0.00011479,2]
[348541208,1736610669042,-150.0,0.00011479,2]
[348541209,1736610669051,-150.0,0.00011479,2]
[348541210,1736610669060,-1268.0,0.0001148,2]
[348541211,1736610669069,-2014.0,0.0001148,2]
[348541212,1736610669078,-150.0,0.0001148,2]
[348541213,1736610669087,-635.0,0.0001148,2]
[348541214,1736610669097,-566.0,0.0001148,2]
[348541215,1736610669106,-1861.0,0.0001148,2]
[348541216,1736610669115,-918.0,0.0001148,2]
[348541217,1736610669124,-1259.0,0.0001148,2]
[348541218,1736610669134,-2944.0,0.0001148,2]
[348541219,1736610669143,-820.0,0.0001148,2]
[348541220,1736610669153,-537.0,0.0001148,2]
[348541221,1736610669162,-3978.0,0.0001148,2]
[348541222,1736610669172,-3896.0,0.0001148,2]
[348541223,1736610669181,-2894.639,0.0001148,2]
[348541224,1736610669190,-150.0,0.0001148,2]
[348541225,1736610669199,-1173.0,0.0001148,2]
[348541226,1736610669208,-150.0,0.0001148,2]
[348541227,1736610669218,-2751.0,0.00011507,2]
[348541228,1736610669227,-500.0,0.00011522,2]
[348541229,1736610669237,-880.01,0.00011529,2]
[348541230,1736610669246,-500.0,0.00011529,2]
[348541231,1736610669255,-500.0,0.00011529,2]
[348541232,1736610669265,-1374.04,0.00011529,2]
[348541233,1736610669274,-500.0,0.00011529,2]
[348541234,1736610669284,-500.0,0.00011529,2]
[348541235,1736610669294,-839.74,0.00011529,2]
[348541236,1736610669303,-560.03,0.00011529,2]
[348541237,1736610669313,-796.77,0.00011529,2]
[348541238,1736610669322,-1000.0,0.00011529,2]
[348541239,1736610669331,-515.81,0.00011529,2]
[348541240,1736610669341,-500.0,0.00011529,2]
[348541241,1736610669349,-1352.02,0.00011529,2]
[348541242,1736610669359,-206.4216457,0.00011614,2]
[348541243,1736610669369,-500.0,0.00011642,2]
[348541244,1736610669378,-500.0,0.00011642,2]
[348541245,1736610669387,-500.0,0.00011642,2]
[348541246,1736610669397,-427.19,0.00011642,2]
[348541247,1736610669407,-500.0,0.00011642,2]
[348541248,1736610669416,-500.0,0.00011642,2]
[348541249,1736610669425,-500.0,0.00011642,2]
[348541250,1736610669434,-500.0,0.00011642,2]
[348541251,1736610669443,-500.0,0.00011642,2]
[348541252,1736610669453,-500.0,0.00011642,2]
[348541253,1736610669463,-500.0,0.00011642,2]
[348541254,1736610669471,-500.0,0.00011642,2]
[348541255,1736610669481,-500.0,0.00011642,2]
[348541256,1736610669491,-311.15,0.00011642,2]
[348541257,1736610669501,-293.97,0.00011642,2]
[348541258,1736610669511,-500.0,0.00011642,2]
[348541259,1736610669520,-500.0,0.00011642,2]
[348541260,1736610669529,-744.554382,0.00011642,2]
[348541261,1736610669538,-500.0,0.00011642,2]
[348541262,1736610669548,-500.0,0.00011642,2]
[348541263,1736610669557,-500.0,0.00011642,2]
[348541264,1736610669566,-319.44,0.00011642,2]
[348541265,1736610669577,-500.0,0.00011642,2]
[348541266,1736610669588,-631.288015,0.00011642,2]
[348541267,1736610669597,-500.0,0.00011642,2]
[348541268,1736610669607,-500.0,0.00011642,2]
[348541269,1736610669616,-500.0,0.00011642,2]
[348541270,1736610669626,-2330.09,0.00011642,2]
[348541271,1736610669635,-1766.97,0.00011642,2]
[348541272,1736610669645,-500.0,0.00011642,2]
[348541273,1736610669655,-574.53,0.00011642,2]
[348541274,1736610669664,-500.0,0.00011642,2]
[348541275,1736610669674,-192.12347331,0.00011642,2]
[348541276,1736610669683,-1332.56,0.00011642,2]
[348541277,1736610669692,-500.0,0.00011642,2]
[348541278,1736610669701,-4211.41,0.00011642,2]
[348541279,1736610669710,-500.0,0.00011642,2]
[348541280,1736610669720,-500.0,0.00011642,2]
[348541281,1736610669729,-500.0,0.00011642,2]
[348541282,1736610669739,-1275.09,0.00011642,2]
[348541283,1736610669748,-504.42082281,0.00011642,2]
[348541284,1736610669758,-500.0,0.00011642,2]
[348541285,1736610669767,-500.0,0.00011642,2]
[348541286,1736610669776,-500.0,0.00011642,2]
[348541287,1736610669785,-773.03,0.00011642,2]
[348541288,1736610669795,-500.0,0.00011642,2]
[348541289,1736610669805,-500.0,0.00011642,2]
[348541290,1736610669814,-1454.88,0.00011642,2]
[348541291,1736610669824,-500.0,0.00011642,2]
[348541292,1736610669833,-2472.62,0.00011642,2]
[348541293,1736610669843,-500.0,0.00011642,2]
[348541294,1736610669853,-500.0,0.00011642,2]
[348541295,1736610669863,-500.0,0.00011642,2]
[348541296,1736610669872,-500.0,0.00011642,2]
[348541297,1736610669882,-500.0,0.00011642,2]
[348541298,1736610669891,-1785.21,0.00011642,2]
[348541299,1736610669901,-231.79,0.00011642,2]
[348541300,1736610669911,-1532.18,0.00011642,2]
[348541301,1736610669921,-500.0,0.00011642,2]
[348541302,1736610669930,-536.75,0.00011642,2]
[348541303,1736610669940,-2774.13,0.00011642,2]
[348541304,1736610669949,-2924.48,0.00011642,2]
[348541305,1736610669959,-500.0,0.00011642,2]
[348541306,1736610669968,-500.0,0.00011642,2]
[348541307,1736610669977,-500.0,0.00011642,2]
[348541308,1736610669987,-635.18,0.00011642,2]
[348541309,1736610669996,-632.01,0.00011642,2]
[348541310,1736610670006,-500.0,0.00011642,2]
[348541311,1736610670173,-500.0,0.00011642,2]
[348541312,1736610670184,-851.94,0.00011642,2]
[348541313,1736610670194,-1533.04,0.00011642,2]
[348541314,1736610670204,-500.0,0.00011642,2]
[348541315,1736610670214,-500.0,0.00011642,2]
[348541316,1736610670223,-931.54,0.00011642,2]
[348541317,1736610670233,-500.0,0.00011642,2]
[348541318,1736610670243,-500.0,0.00011642,2]
[348541319,1736610670252,-500.0,0.00011642,2]
[348541320,1736610670262,-500.0,0.00011642,2]
[348541321,1736610670273,-500.0,0.00011642,2]
[348541322,1736610670283,-1839.19,0.00011642,2]
[348541323,1736610670292,-500.0,0.00011642,2]
[348541324,1736610670303,-1140.01,0.00011642,2]
[348541325,1736610670312,-542.66156171,0.00011642,2]
[348541326,1736610670321,-500.0,0.00011642,2]
[348541327,1736610670331,-1530.38,0.00011642,2]
[348541328,1736610670340,-541.19,0.00011642,2]
[348541329,1736610670349,-500.0,0.00011642,2]
[348541330,1736610670358,-626.4340361,0.00011642,2]
[348541331,1736610670368,-500.0,0.00011642,2]
[348541332,1736610670377,-737.1,0.00011642,2]
[348541333,1736610670386,-500.0,0.00011642,2]
[348541334,1736610670395,-500.0,0.00011642,2]
[348541335,1736610670405,-522.88,0.00011642,2]
[348541336,1736610670414,-720.61,0.00011642,2]
[348541337,1736610670424,-500.0,0.00011642,2]
[348541338,1736610670433,-581.95,0.00011642,2]
[348541339,1736610670442,-1056.22,0.00011642,2]
[348541340,1736610670451,-500.0,0.00011643,2]
[348541341,1736610670461,-165.27,0.00011643,2]
[348541342,1736610670470,-500.0,0.00011643,2]
[348541343,1736610670479,-500.0,0.00011643,2]
[348541344,1736610670488,-500.0,0.00011643,2]
[348541345,1736610670498,-500.0,0.00011643,2]
[348541346,1736610670507,-500.0,0.00011643,2]
[348541347,1736610670516,-500.0,0.00011643,2]
[348541348,1736610670527,-500.0,0.00011643,2]
[348541349,1736610670536,-500.0,0.00011643,2]
[348541350,1736610670546,-500.0,0.00011643,2]
[348541351,1736610670555,-230.91,0.00011643,2]
[348541352,1736610670564,-233.38,0.00011643,2]
[348541353,1736610670574,-500.0,0.00011643,2]
[348541354,1736610670588,-333.19,0.00011643,2]
[348541355,1736610670597,-236.29,0.00011643,2]
[348541356,1736610670606,-168.53,0.00011643,2]
[348541357,1736610670616,-500.0,0.00011643,2]
[348541358,1736610670626,-500.0,0.00011643,2]
[348541359,1736610670636,-500.0,0.00011643,2]
[348541360,1736610670644,-500.0,0.00011643,2]
[348541361,1736610670654,-500.0,0.00011643,2]
[348541362,1736610670663,-500.0,0.00011643,2]
[348541363,1736610670672,-500.0,0.00011643,2]
[348541364,1736610670681,-500.0,0.00011643,2]
[348541365,1736610670690,-500.0,0.00011643,2]
[348541366,1736610670699,-323.81,0.00011643,2]
[348541367,1736610670708,-500.0,0.00011643,2]
[348541368,1736610670718,-500.0,0.00011643,2]
[348541369,1736610670727,-500.0,0.00011643,2]
[348541370,1736610670736,-500.0,0.00011643,2]
[348541371,1736610670746,-500.0,0.00011643,2]
[348541372,1736610670755,-540.76,0.00011643,2]
[348541373,1736610670765,-500.0,0.00011643,2]
[348541374,1736610670778,-500.0,0.00011643,2]
[348541375,1736610670787,-500.0,0.00011643,2]
[348541376,1736610670796,-181.17113599,0.00011643,2]
[348541377,1736610670806,-631.08,0.00011643,2]
[348541378,1736610670816,-500.0,0.00011643,2]
[348541379,1736610670826,-500.0,0.00011643,2]
[348541380,1736610670835,-500.0,0.00011643,2]
[348541381,1736610670845,-500.0,0.00011643,2]
[348541382,1736610670854,-500.0,0.00011643,2]
[348541383,1736610670863,-500.0,0.00011643,2]
[348541384,1736610670872,-500.0,0.00011643,2]
[348541385,1736610670882,-500.0,0.00011643,2]
[348541386,1736610670891,-241.94,0.00011643,2]
[348541387,1736610670901,-500.0,0.00011643,2]
[348541388,1736610670910,-500.0,0.00011643,2]
[348541389,1736610670920,-500.0,0.00011643,2]
[348541390,1736610670930,-500.0,0.00011643,2]
[348541391,1736610670939,-500.0,0.00011643,2]
[348541392,1736610670949,-543.14,0.00011643,2]
[348541393,1736610670958,-500.0,0.00011643,2]
[348541394,1736610670968,-224.49,0.00011643,2]
[348541395,1736610670977,-500.0,0.00011643,2]
[348541396,1736610670986,-197.18,0.00011643,2]
[348541397,1736610670995,-574.14,0.00011643,2]
[348541398,1736610671004,-500.0,0.00011643,2]
[348541399,1736610671014,-500.0,0.00011643,2]
[348541400,1736610671026,-500.0,0.00011643,2]
[348541401,1736610671036,-500.0,0.00011643,2]
[348541402,1736610671045,-474.84888554,0.00011643,2]
[348541403,1736610671055,-758.14,0.00011643,2]
[348541404,1736610671064,-500.0,0.00011643,2]
[348541405,1736610671074,-500.0,0.00011643,2]
[348541406,1736610671083,-167.58,0.00011643,2]
[348541407,1736610671092,-500.0,0.00011643,2]
[348541408,1736610671101,-500.0,0.00011643,2]
[348541409,1736610671110,-500.0,0.00011643,2]
[348541410,1736610671120,-500.0,0.00011643,2]
[348541411,1736610671130,-500.0,0.00011643,2]
[348541412,1736610671140,-500.0,0.00011643,2]
[348541413,1736610671149,-500.0,0.00011643,2]
[348541414,1736610671159,-500.0,0.00011643,2]
[348541415,1736610671169,-287.57910054,0.00011643,2]
[348541416,1736610671178,-500.0,0.00011643,2]
[348541417,1736610671187,-500.0,0.00011643,2]
[348541418,1736610671197,-691.22,0.00011643,2]
[348541419,1736610671206,-500.0,0.00011643,2]
[348541420,1736610671215,-500.0,0.00011643,2]
[348541421,1736610671225,-500.0,0.00011643,2]
[348541422,1736610671235,-500.0,0.00011643,2]
[348541423,1736610671246,-500.0,0.00011643,2]
[348541424,1736610671255,-500.0,0.00011643,2]
[348541425,1736610671265,-500.0,0.00011643,2]
[348541426,1736610671275,-500.0,0.00011643,2]
[348541427,1736610671285,-500.0,0.00011643,2]
[348541428,1736610671295,-500.0,0.00011643,2]
[348541429,1736610671306,-500.0,0.00011643,2]
[348541430,1736610671315,-500.0,0.00011643,2]
[348541431,1736610671325,-500.0,0.00011643,2]
[348541432,1736610671335,-500.0,0.00011643,2]
[348541433,1736610671344,-500.0,0.00011643,2]
[348541434,1736610671354,-500.0,0.00011643,2]
[348541435,1736610671363,-529.43,0.00011643,2]
[348541436,1736610671373,-500.0,0.00011643,2]
[348541437,1736610671383,-500.0,0.00011643,2]
[348541438,1736610671393,-500.0,0.00011643,2]
[348541439,1736610671403,-500.0,0.00011643,2]
[348541440,1736610671413,-500.0,0.00011643,2]
[348541441,1736610671423,-500.0,0.00011643,2]
[348541442,1736610671433,-500.0,0.00011643,2]
[348541443,1736610671443,-259.6214002,0.00011643,2]
[348541444,1736610671453,-500.0,0.00011643,2]
[348541445,1736610671463,-500.0,0.00011643,2]
[348541446,1736610671474,-500.0,0.00011643,2]
[348541447,1736610671484,-500.0,0.00011643,2]
[348541448,1736610671495,-500.0,0.00011643,2]
[348541449,1736610671505,-500.0,0.00011643,2]
[348541450,1736610671514,-500.0,0.00011643,2]
[348541451,1736610671525,-500.0,0.00011643,2]
[348541452,1736610671534,-500.0,0.00011643,2]
[348541453,1736610671544,-500.0,0.00011643,2]
[348541454,1736610671554,-224.62,0.00011643,2]
[348541455,1736610671563,-474.15,0.00011643,2]
[348541456,1736610671573,-500.0,0.00011643,2]
[348541457,1736610671586,-500.0,0.00011643,2]
[348541458,1736610671595,-500.0,0.00011643,2]
[348541459,1736610671605,-500.0,0.00011643,2]
[348541460,1736610671615,-500.0,0.00011643,2]
[348541461,1736610671624,-500.0,0.00011643,2]
[348541462,1736610671635,-500.0,0.00011643,2]
[348541463,1736610671644,-500.0,0.00011643,2]
[348541464,1736610671653,-500.0,0.00011643,2]
[348541465,1736610671663,-500.0,0.00011643,2]
[348541466,1736610671672,-500.0,0.00011643,2]
[348541467,1736610671682,-500.0,0.00011643,2]
[348541468,1736610671691,-534.41,0.00011643,2]
[348541469,1736610671700,-500.0,0.00011643,2]
[348541470,1736610671709,-500.0,0.00011643,2]
[348541471,1736610671719,-500.0,0.00011643,2]
[348541472,1736610671728,-500.0,0.00011643,2]
[348541473,1736610671737,-203.961,0.0001168,2]
[348541474,1736610671747,-880.01,0.00011803,2]
[348541475,1736610671761,-500.0,0.00011803,2]
[348541476,1736610671771,-500.0,0.00011803,2]
[348541477,1736610671781,-1374.04,0.00011803,2]
[348541478,1736610671791,-500.0,0.00011803,2]
[348541479,1736610671800,-500.0,0.00011803,2]
[348541480,1736610671810,-839.74,0.00011803,2]
[348541481,1736610671819,-560.03,0.00011803,2]
[348541482,1736610671828,-796.77,0.00011803,2]
[348541483,1736610671838,-1000.0,0.00011803,2]
[348541484,1736610671847,-515.81,0.00011803,2]
[348541485,1736610671858,-500.0,0.00011803,2]
[348541486,1736610671879,-1352.02,0.00011803,2]
[348541487,1736610671899,-206.4216457,0.00011829,2]
[348541488,1736610671921,-245.81,0.00011838,2]
[348541489,1736610671942,-500.0,0.00011916,2]
[348541490,1736610671963,-500.0,0.00011916,2]
[348541491,1736610671986,-337.08,0.00011916,2]
[348541492,1736610672007,-500.0,0.00011916,2]
[348541493,1736610672034,-500.0,0.00011916,2]
[348541494,1736610672055,-500.0,0.00011916,2]
[348541495,1736610672065,-408.23,0.00011916,2]
[348541496,1736610672074,-500.0,0.00011916,2]
[348541497,1736610672084,-500.0,0.00011916,2]
[348541498,1736610672093,-500.0,0.00011916,2]
[348541499,1736610672103,-500.0,0.00011916,2]
[348541500,1736610672112,-500.0,0.00011916,2]
[348541501,1736610672122,-744.554382,0.00011916,2]
[348541502,1736610672132,-210.35,0.00011916,2]
[348541503,1736610672142,-500.0,0.00011916,2]
[348541504,1736610672151,-500.0,0.00011916,2]
[348541505,1736610672161,-500.0,0.00011916,2]
[348541506,1736610672170,-631.288015,0.00011916,2]
[348541507,1736610672180,-500.0,0.00011916,2]
[348541508,1736610672190,-500.0,0.00011916,2]
[348541509,1736610672199,-500.0,0.00011916,2]
[348541510,1736610672209,-2330.09,0.00011916,2]
[348541511,1736610672218,-1766.97,0.00011916,2]
[348541512,1736610672228,-432.58511705,0.00011916,2]
[348541513,1736610672238,-574.53,0.00011916,2]
[348541514,1736610672247,-500.0,0.00011916,2]
[348541515,1736610672256,-1332.56,0.00011916,2]
[348541516,1736610672266,-500.0,0.00011916,2]
[348541517,1736610672276,-4211.41,0.00011916,2]
[348541518,1736610672286,-500.0,0.00011916,2]
[348541519,1736610672295,-500.0,0.00011916,2]
[348541520,1736610672305,-500.0,0.00011916,2]
[348541521,1736610672315,-1275.09,0.00011916,2]
[348541522,1736610672324,-500.0,0.00011916,2]
[348541523,1736610672333,-500.0,0.00011916,2]
[348541524,1736610672344,-500.0,0.00011916,2]
[348541525,1736610672354,-773.03,0.00011916,2]
[348541526,1736610672364,-500.0,0.00011916,2]
[348541527,1736610672374,-1454.88,0.00011916,2]
[348541528,1736610672383,-500.0,0.00011916,2]
[348541529,1736610672393,-2472.62,0.00011916,2]
[348541530,1736610672403,-156.26,0.00011916,2]
[348541531,1736610672413,-500.0,0.00011916,2]
[348541532,1736610672422,-1785.21,0.00011916,2]
[348541533,1736610672433,-1532.18,0.00011916,2]
[348541534,1736610672442,-500.0,0.00011916,2]
[348541535,1736610672451,-2774.13,0.00011916,2]
[348541536,1736610672462,-2924.48,0.00011916,2]
[348541537,1736610672471,-500.0,0.00011916,2]
[348541538,1736610672481,-500.0,0.00011916,2]
[348541539,1736610672490,-500.0,0.00011916,2]
[348541540,1736610672500,-635.18,0.00011916,2]
[348541541,1736610672510,-632.01,0.00011916,2]
[348541542,1736610672520,-500.0,0.00011916,2]
[348541543,1736610672530,-851.94,0.00011916,2]
[348541544,1736610672539,-1533.04,0.00011916,2]
[348541545,1736610672549,-500.0,0.00011916,2]
[348541546,1736610672558,-500.0,0.00011916,2]
[348541547,1736610672568,-931.54,0.00011916,2]
[348541548,1736610672581,-500.0,0.00011916,2]
[348541549,1736610672590,-500.0,0.00011916,2]
[348541550,1736610672600,-500.0,0.00011916,2]
[348541551,1736610672609,-177.02,0.00011916,2]